Cogmind - Beta 15 @@@ ROGUE MODE // 2025.07.08 @ 19:32:28 Player: korgoth Result: Destroyed by P-70 Sage with High-powered Shock Rifle Performance ------------- Evolutions (6) 3000 Regions Visited (9) 1800 Robots Destroyed (46) 230 Value Destroyed (2138) 2138 Prototype IDs (3) 60 Alien Tech Used (0) 0 Bonus (77) 77 TOTAL SCORE: 7305 Bonus ------- Follower Combat Kills 77 Cogmind --------- Core Integrity 0/1150 Matter 300/300 Energy 100/100 System Corruption 3% Temperature Cool (0) Movement Core (50) Location -4/Factory Parts ------- > --- POWER (2) -------- (None) > --- PROPULSION (6) --- (None) > --- UTILITY (9) ------ (None) > --- WEAPON (2) ------- (None) > --- INVENTORY (5) ---- Advanced Weight Redist. System System Shield Heavy Proton Cannon Proton Missile Launcher Peak State ------------ > --- POWER ------------ Light Ion Engine Improved Deuterium Engine > --- PROPULSION ------- Improved Titanium Leg Wheel Wheel Armored Huge Wheel > --- UTILITY ---------- Medium Storage Unit Advanced Sensor Array Improved Signal Interpreter Improved Terrain Scan Processor Advanced Targeting Computer Improved Transmission Jammer Improved Light Armor Plating Improved Medium Armor Plating > --- WEAPON ----------- Variable Charge Gun KE Penetrator > --- INVENTORY -------- Armored Leg Thunder Leg Gravmag Array Gravmag Array Linear Gravjet Small Storage Unit Proton Missile Launcher Heavy Flail [Rating: 63] Favorites ----------- Power Ion Engine Engine Ion Engine Power Core Light Nuclear Core Propulsion Wheel Leg Aluminum Leg Wheel Wheel Hover Unit Antigrav System Utility Medium Storage Unit Device Experimental Sensor Array Storage Medium Storage Unit Processor Advanced Targeting Computer Protection Improved Medium Armor Plating Weapon Assault Rifle Energy Gun Variable Charge Gun Energy Cannon Plasma Cannon Ballistic Gun Assault Rifle Ballistic Cannon Hardcell Cannon Launcher Proton Missile Launcher Impact Weapon Heavy Hammer Build | -11 -10 -10 -10 -9 -8 -7 -6 -5 -4 ------- Run | Yrd Mat Min Exi Min Mat Fac Fac Fac Fac Slots Evolved 12 | . . . . . 4 2 2 2 2 Power 1 | . . . . . . . 1 . . Propulsion 4 | . . . . . 1 1 . 1 1 Utility 7 | . . . . . 3 1 1 1 1 Weapon . | . . . . . . . . . . Parts Attached 78 | 7 . . 2 2 12 17 5 19 14 Power 8 | 1 . . . . 1 3 1 2 . Engine 5 | 1 . . . . 1 . 1 2 . Core 3 | . . . . . . 3 . . . Reactor . | . . . . . . . . . . Propulsion 26 | 2 . . . 1 3 6 1 5 8 Treads . | . . . . . . . . . . Leg 11 | . . . . . 3 3 . 3 2 Wheel 10 | 2 . . . 1 . 3 1 . 3 Hover 5 | . . . . . . . . 2 3 Flight . | . . . . . . . . . . Utility 18 | 2 . . 2 . 3 2 2 5 2 Device 6 | 1 . . 1 . . 1 . 2 1 Storage 3 | 1 . . 1 . . . 1 . . Processor 5 | . . . . . 3 . . 1 1 Hackware . | . . . . . . . . . . Protection 4 | . . . . . . 1 1 2 . Artifact . | . . . . . . . . . . Weapon 26 | 2 . . . 1 5 6 1 7 4 Energy Gun 8 | . . . . . 1 3 . 4 . Energy Cannon 5 | . . . . . 1 1 1 . 2 Ballistic Gun 5 | 2 . . . 1 . 1 . 1 . Ballistic Cannon 3 | . . . . . . 1 . . 2 Launcher 3 | . . . . . 2 . . 1 . Special Weapon . | . . . . . . . . . . Impact Weapon 2 | . . . . . 1 . . 1 . Slashing Weapon . | . . . . . . . . . . Piercing Weapon . | . . . . . . . . . . Special Melee Weapon . | . . . . . . . . . . Unidentified Prototypes 3 | . . . 1 . . 1 . . 1 Parts Lost 57 | . . . . 1 5 16 . 17 18 Power 8 | . . . . . 1 4 . 3 . Propulsion 23 | . . . . 1 1 6 . 6 9 Utility 13 | . . . . . 2 1 . 6 4 Weapon 13 | . . . . . 1 5 . 2 5 Highest Loss Streak 12 | . . . . 1 4 9 . 7 12 To Critical Strikes 2 | . . . . . . . . 1 1 Average Backups 7 | 4 5 7 8 7 8 7 7 7 4 Power . | . 1 1 1 1 1 1 . . . Propulsion 2 | 2 3 3 3 2 2 . 1 3 1 Utility 1 | . . . 1 1 1 1 2 1 1 Weapon 2 | . 1 2 3 3 3 4 2 2 1 Tool/Special . | . . . . . . . . . . Unused Backups 10 | . . 1 . . 2 3 1 1 2 Power . | . . . . . . . . . . Propulsion 1 | . . . . . 1 . . . . Utility 6 | . . . . . . 2 1 1 2 Weapon 2 | . . . . . 1 1 . . . Tool/Special 1 | . . 1 . . . . . . . Average Slot Usage (%) 78 | . 100 100 100 99 72 68 66 76 35 Engine 8 | . 14 14 14 14 8 1 6 8 . Leg 5 | . . . . . 13 20 . 6 1 Wheel 15 | . 28 28 28 27 11 4 20 9 1 Hover 1 | . . . . . . . . . 10 Device 7 | . 14 14 14 14 4 . . 6 . Storage 10 | . 14 14 14 14 9 7 6 8 7 Processor 7 | . . . . . 7 15 13 11 5 Protection 2 | . . . . . . . 7 8 . Energy Gun 1 | . . . . . 3 4 . 3 1 Energy Cannon 1 | . . . . . 6 1 5 1 1 Ballistic Gun 11 | . 28 28 28 28 6 5 . 2 . Impact Weapon 1 | . . . . . . . 6 1 2 Peak Build Rating 63 | 7 7 8 15 16 23 34 33 63 49 Average Rating 27 | 4 7 7 14 15 16 23 29 49 33 On Entrance 14 | . 7 7 8 15 16 17 24 33 20 Naked Turns 36 | . . . . . . . . . 36 Heaviest Build 56 | 15 15 15 20 20 25 30 33 56 44 Greatest Support 59 | 20 20 20 20 26 33 48 48 59 48 Greatest Overweight (x) 5 | 1 . . . . 1 5 . 5 4 Average Overweight (x) . | . . . . . . . . . . Largest Inventory Capacity 10 | 8 8 8 10 10 10 10 10 10 10 Average Capacity 9 | 7 8 8 9 10 10 10 10 10 9 Most Carried 10 | 7 6 8 9 10 10 10 10 10 9 Average Carried 8 | 4 5 7 8 7 8 8 7 9 5 Final Capacity 10 | 8 8 8 10 10 10 10 10 10 5 Final Carried 10 | 5 6 8 9 10 8 8 9 5 4 Class Distribution -------------------- 82% | Mutant 17% | Scavenger-Mutant Dominant Class ---------------- Mutant | -10/Materials Mutant | -10/Mines Mutant | -10/Exiles Mutant | -9/Mines Mutant | -8/Materials Mutant | -7/Factory Mutant | -6/Factory Scavenger-Mutant | -5/Factory Mutant | -4/Factory Resources | -11 -10 -10 -10 -9 -8 -7 -6 -5 -4 ----------- Run | Yrd Mat Min Exi Min Mat Fac Fac Fac Fac Matter Collected 1732 | 292 . 20 . 87 40 411 186 385 311 Remotely . | . . . . . . . . . . Salvage Created 1721 | 89 . . . 110 239 385 63 536 299 Parts 89 | 4 . . . 13 10 13 3 30 16 Haulers Intercepted . | . . . . . . . . . . Recyclers Shooed 1 | . . . . . 1 . . . . Parts Field Recycled . | . . . . . . . . . . Retrieved Matter . | . . . . . . . . . . Parts Self-Destructed . | . . . . . . . . . . Prevented . | . . . . . . . . . . Kills | -11 -10 -10 -10 -9 -8 -7 -6 -5 -4 ------- Run | Yrd Mat Min Exi Min Mat Fac Fac Fac Fac Combat Hostiles Destroyed 40 | . . . . 5 10 10 1 8 6 Guns 13 | . . . . 5 . 5 . 3 . Cannons 11 | . . . . . 2 5 . . 4 AOE 12 | . . . . . 8 . . 4 . Classes Destroyed 11 | 2 . . . 2 5 1 . . 1 Worker 2 | . . . . . 1 1 . . . Builder 2 | . . . . . 1 . . . 1 Tunneler 1 | 1 . . . . . . . . . Recycler 1 | 1 . . . . . . . . . Swarmer 7 | . . . . 4 . 3 . . . Grunt 13 | . . . . . 7 5 . . 1 Duelist 1 | . . . . 1 . . . . . Sentry 8 | . . . . . 2 1 1 3 1 Hunter 4 | . . . . . 1 . . . 3 Programmer 6 | . . . . . . 1 . 5 . Heavy 1 | . . . . . . . . . 1 Best Kill Streak 10 | 1 . . . 4 10 4 1 2 3 Combat Bots Only 9 | . . . . 4 9 3 1 2 2 Max Kills in Single Turn 3 | 1 . . . 2 3 1 1 2 1 Gunslinging 1 | . . . . 1 . . . . . Exploded 2 | . . . . . 2 . . 2 . Melee . | . . . . . . . . . . Uniques/NPCs Destroyed . | . . . . . . . . . . Combat | -11 -10 -10 -10 -9 -8 -7 -6 -5 -4 -------- Run | Yrd Mat Min Exi Min Mat Fac Fac Fac Fac Hostile Shots Fired 804 | . . 5 . 30 67 232 15 210 245 Missed 259 | . . 1 . 7 19 62 8 69 93 Hits 545 | . . 4 . 23 48 170 7 141 152 Projectile 545 | . . 4 . 23 48 170 7 141 152 AOE 1 | . . . . . . . . . 1 Critical Strikes 18 | . . . . . . 3 . 9 6 Part Disruptions 3 | . . . . . . . . 2 1 Damage Taken 9739 | . . 56 . 191 732 2384 57 3174 3145 Core 2463 | . . 30 . 32 183 454 10 598 1156 Absorbed by Shields . | . . . . . . . . . . Regen/Repaired (Parts) 200 | . . . . . . . 200 . . Core Remaining (%) 69 | 100 . . . 75 66 35 98 40 . Volleys Fired 140 | 7 . . . 10 16 36 1 43 27 Largest 2 | 2 . . . 2 2 2 1 2 2 Hottest 156 | 40 . . . 40 131 135 80 156 153 Shots Fired 230 | 14 . . . 20 32 55 1 76 32 Gun 134 | 14 . . . 20 7 33 . 60 . Cannon 61 | . . . . . 7 22 1 . 31 Launcher 35 | . . . . . 18 . . 16 1 Special . | . . . . . . . . . . Kinetic 114 | 14 . . . 20 . 29 . 25 26 Thermal 69 | . . . . . 14 26 1 23 5 Explosive 18 | . . . . . 18 . . . . Electromagnetic 29 | . . . . . . . . 28 1 Robot Hit Streak 14 | 3 . . . 5 11 12 3 14 8 Robot Miss Streak 3 | 1 . . . 1 3 3 . 1 3 Penetration Max . | . . . . . . . . . . Secondary Targets 2 | . . . . 2 . . . . . Max Gunslinging Chain 1 | . . . . 1 . . . . . Shots Hit Robots 178 | 9 . . . 14 23 41 1 66 24 Core Hits 97 | 3 . . . 7 33 19 . 24 11 Critical Kills 1 | . . . . . . . 1 . . Critical Parts Destroyed 1 | . . . . . . . . 1 . Critical Strikes 4 | . . . . . 1 1 1 1 . Burn 2 | . . . . . 1 1 . . . Meltdown 1 | . . . . . . . 1 . . Smash 1 | . . . . . . . . 1 . Melee Attacks 14 | . . . . . 1 1 . 5 7 Impact 14 | . . . . . 1 1 . 5 7 Slashing . | . . . . . . . . . . Piercing . | . . . . . . . . . . Sneak Attacks . | . . . . . . . . . . Combat Hostiles . | . . . . . . . . . . Follow-up Attacks . | . . . . . . . . . . Damage Inflicted 5930 | 118 . . . 172 1373 989 25 2016 1237 Guns 1987 | 118 . . . 172 90 519 . 1088 . Cannons 1424 | . . . . . 125 470 25 . 804 Explosions 2185 | . . . . . 1158 . . 719 308 Melee 328 | . . . . . . . . 209 119 Ramming 6 | . . . . . . . . . 6 Kinetic 2087 | 118 . . . 172 . 587 . 539 671 Thermal 1688 | . . . . . 215 402 25 659 387 Explosive 1329 | . . . . . 1158 . . 171 . Electromagnetic 492 | . . . . . . . . 438 54 Impact 328 | . . . . . . . . 209 119 Slashing . | . . . . . . . . . . Piercing . | . . . . . . . . . . Highest Corruption 11 | . . . . . . 3 . 11 3 Average Corruption 4 | . . . . . . 2 . 5 1 Corruption Purged . | . . . . . . . . . . Corruption Blocked . | . . . . . . . . . . Effects 22 | . . . . . . 6 . 14 2 Message Errors 5 | . . . . . . 1 . 3 1 Matter Fused 4 | . . . . . . 1 . 2 1 Heat Flow Errors 2 | . . . . . . 1 . 1 . Energy Discharges 2 | . . . . . . 1 . 1 . Parts Rejected 3 | . . . . . . 1 . 2 . Data Loss (minor) 4 | . . . . . . 1 . 3 . Misdirections 1 | . . . . . . . . 1 . Weapon Failures 1 | . . . . . . . . 1 . Overload Shots . | . . . . . . . . . . Overflow Damage 319 | . . . . . 13 13 . 183 110 Projectiles 25 | . . . . . . 13 . . 12 Explosions 170 | . . . . . 13 . . 148 9 Melee 124 | . . . . . . . . 35 89 Knockbacks 8 | . . . . . . 4 . 1 3 Impact 3 | . . . . . . . . 1 2 Kinetic 5 | . . . . . . 4 . . 1 Secondary . | . . . . . . . . . . Self-Inflicted Damage 443 | . . . . . . . . 349 94 Shots 7 | . . . . . . . . 5 2 Rammed 2 | . . . . . . . . . 2 Targets Rammed 2 | . . . . . . . . . 2 Kicked . | . . . . . . . . . . Crushed . | . . . . . . . . . . Highest Temperature 569 | . . . . . 216 217 20 569 192 Average Temperature 128 | . . . . . 77 60 15 197 98 Received Heat Transfer 1442 | . . 15 . . 324 561 18 316 208 Effects 7 | . . . . . . 2 . 5 . Shutdowns 3 | . . . . . . . . 3 . Interference 2 | . . . . . . 2 . . . Short Circuit 1 | . . . . . . . . 1 . Damage (minor) 1 | . . . . . . . . 1 . Siege Activations . | . . . . . . . . . . Martial Activations . | . . . . . . . . . . Shielding Activations . | . . . . . . . . . . Robots Disrupted . | . . . . . . . . . . Combat Hostiles . | . . . . . . . . . . Robots Corrupted 3 | . . . . . . . . 1 2 Combat Hostiles 3 | . . . . . . . . 1 2 Parts Fried 3 | . . . . . . . . 3 . Impact Corruptions 5 | . . . . . . . . 3 2 Robots Melted 1 | . . . . . . . 1 . . Combat Hostiles 1 | . . . . . . . 1 . . Parts Melted 6 | . . . . 1 2 1 1 1 . Heat Transferred 2463 | . . . . . 481 816 50 716 400 Parts Sabotaged . | . . . . . . . . . . Parts Stolen . | . . . . . . . . . . Parts Stripped . | . . . . . . . . . . Power Chain Reactions 3 | . . . . . . . . 3 . Alert | -11 -10 -10 -10 -9 -8 -7 -6 -5 -4 ------- Run | Yrd Mat Min Exi Min Mat Fac Fac Fac Fac Maximum Alert Level 1 | . . . . . 1 . . . . Low Security (%) 96 | 100 100 100 . 100 63 100 100 100 100 Level 1 3 | . . . . . 36 . . . . Level 2 . | . . . . . . . . . . Level 3 . | . . . . . . . . . . Level 4 . | . . . . . . . . . . Level 5 . | . . . . . . . . . . High Security . | . . . . . . . . . . Max Security . | . . . . . . . . . . Peak Influence 297 | 5 . 40 . 90 297 136 60 106 128 Initial 106 | . . . . . . 106 39 29 1 Average 35 | . . 8 . 14 108 57 9 30 36 Influence Increases 1944 | 10 . 90 . 162 418 318 120 435 391 Destroy 0b10 Robot/C 840 | . . . . 120 200 200 20 180 120 Destroy 0b10 Robot/NC 30 | 10 . . . . 10 5 . . 5 Destroy Leader 220 | . . . . 20 50 50 10 50 40 Allied During Kill 10 | . . . . 7 . . . 3 . Disable Machine 135 | . . . . . . 15 . 75 45 Destroy Structure 154 | . . . . . 23 3 . 52 76 Partial Spotted 45 | . . 30 . . . . 15 . . Lose Combat Pursuer 510 | . . 60 . 15 135 45 75 75 105 Influence Decreases 1839 | 10 . 90 . 162 184 472 140 491 290 Entered New Map 203 | . . . . . . 128 41 31 3 Time Decay 1073 | 10 . 90 . 132 134 194 99 277 137 Lost Part 530 | . . . . 10 50 150 . 170 150 Lost Ally 33 | . . . . 20 . . . 13 . Squads Dispatched 21 | . . . . . 2 7 . 7 5 Investigation 1 | . . . . . . 1 . . . Extermination 5 | . . . . . . 1 . 3 1 Reinforcement 9 | . . . . . 2 2 . 1 4 Assault . | . . . . . . . . . . Garrison 6 | . . . . . . 3 . 3 . Intercept . | . . . . . . . . . . Searches Triggered . | . . . . . . . . . . Construction Impeded 3 | . . . . . . 1 . 1 1 Haulers Reinforced 1 | . . . . . . . . . 1 Active Scanning Responses . | . . . . . . . . . . Cargo Convoy Interrupts . | . . . . . . . . . . Stealth | -11 -10 -10 -10 -9 -8 -7 -6 -5 -4 --------- Run | Yrd Mat Min Exi Min Mat Fac Fac Fac Fac Distress Signals 4 | . . . . . 2 . . . 2 Communications Jammed 1 | . . . . . . . . 1 . Distress Signals 1 | . . . . . . . . 1 . Times Spotted 104 | . 1 4 . 6 23 21 5 25 19 Peak Tracking Total 10 | . 1 2 . 4 10 8 4 10 7 Tactical Retreats 16 | . . 2 . 1 3 2 2 3 3 Traps | -11 -10 -10 -10 -9 -8 -7 -6 -5 -4 ------- Run | Yrd Mat Min Exi Min Mat Fac Fac Fac Fac Traps Triggered 4 | . . . . . . 2 . 2 . Indirectly 1 | . . . . . . . . 1 . Trap Hack Attempts . | . . . . . . . . . . Triggered . | . . . . . . . . . . Disarmed . | . . . . . . . . . . Reprogrammed . | . . . . . . . . . . Reused . | . . . . . . . . . . Traps Extracted . | . . . . . . . . . . Installed . | . . . . . . . . . . Triggered . | . . . . . . . . . . Machines | -11 -10 -10 -10 -9 -8 -7 -6 -5 -4 ---------- Run | Yrd Mat Min Exi Min Mat Fac Fac Fac Fac Machines Disabled 9 | . . . . . . 1 . 5 3 Max in Single Turn 3 | . . . . . . 1 . 3 2 Machines Repaired . | . . . . . . . . . . Machines Dismantled . | . . . . . . . . . . Machines Sabotaged . | . . . . . . . . . . Overloaded Fab Kills . | . . . . . . . . . . Hacking | -11 -10 -10 -10 -9 -8 -7 -6 -5 -4 --------- Run | Yrd Mat Min Exi Min Mat Fac Fac Fac Fac Machines Accessed 13 | . 1 . 4 . 1 1 3 2 1 Terminals 5 | . 1 . . . 1 1 1 . 1 Fabricators 1 | . . . . . . . . 1 . Repair Stations 1 | . . . . . . . 1 . . Recycling Units 2 | . . . . . . . 1 1 . Scanalyzers . | . . . . . . . . . . Garrison Access . | . . . . . . . . . . Total Hacks 19 | . 2 . 4 . 2 2 6 2 1 Successful 10 | . . . 4 . . . 3 2 1 Failed 9 | . 2 . . . 2 2 3 . . Catastrophic 3 | . . . . . 2 1 . . . Database Lockouts . | . . . . . . . . . . Manual 8 | . 2 . . . 2 2 2 . . Terminals 9 | . 2 . . . 2 2 2 . 1 Fabricators 1 | . . . . . . . . 1 . Repair Stations 3 | . . . . . . . 3 . . Recycling Units 2 | . . . . . . . 1 1 . Scanalyzers . | . . . . . . . . . . Garrison Access . | . . . . . . . . . . Terminal Hacks 5 | . . . 4 . . . . . 1 Record 4 | . . . 4 . . . . . . Open DSF 1 | . . . . . . . . . 1 Fabricator Hacks 1 | . . . . . . . . 1 . Build 1 | . . . . . . . . 1 . Repair Station Hacks 2 | . . . . . . . 2 . . Scan Component 1 | . . . . . . . 1 . . Repair 1 | . . . . . . . 1 . . Recycling Unit Hacks 2 | . . . . . . . 1 1 . Report Inventory 2 | . . . . . . . 1 1 . Scanalyzer . | . . . . . . . . . . Garrison Access Hacks . | . . . . . . . . . . Unauthorized Hacks . | . . . . . . . . . . Terminals . | . . . . . . . . . . Fabricators . | . . . . . . . . . . Repair Stations . | . . . . . . . . . . Recycling Units . | . . . . . . . . . . Scanalyzers . | . . . . . . . . . . Garrison Access . | . . . . . . . . . . Data Cores Recovered . | . . . . . . . . . . Used . | . . . . . . . . . . Hacking Detections 3 | . . . . . 1 1 1 . . Full Trace Events 1 | . . . . . . 1 . . . Feedback Events . | . . . . . . . . . . Feedback Blocked . | . . . . . . . . . . Robot Schematics Acquired . | . . . . . . . . . . Robots Built 2 | . . . . . . . . 2 . Authchips . | . . . . . . . . . . Time 152 | . . . . . . . . 152 . Total Robot Build Rating 10 | . . . . . . . . 10 . Part Schematics Acquired . | . . . . . . . . . . Parts Built . | . . . . . . . . . . Authchips . | . . . . . . . . . . Time . | . . . . . . . . . . Total Part Build Rating . | . . . . . . . . . . Parts Repaired 1 | . . . . . . . 1 . . Time 44 | . . . . . . . 44 . . Parts Recycled . | . . . . . . . . . . Recycled Matter . | . . . . . . . . . . Retrieved Matter . | . . . . . . . . . . Retrieved Components . | . . . . . . . . . . Parts Scanalyzed . | . . . . . . . . . . Part Schematics Acquired . | . . . . . . . . . . Parts Damaged . | . . . . . . . . . . Bothacking | -11 -10 -10 -10 -9 -8 -7 -6 -5 -4 ------------ Run | Yrd Mat Min Exi Min Mat Fac Fac Fac Fac Used RIF Installer . | . . . . . . . . . . Robots Hacked . | . . . . . . . . . . Non-combat . | . . . . . . . . . . Combat . | . . . . . . . . . . Robot Hacks Applied . | . . . . . . . . . . Relay Couplers Released . | . . . . . . . . . . Fabnet Peak Effective % . | . . . . . . . . . . Robots Rewired . | . . . . . . . . . . Allies Hacked . | . . . . . . . . . . Hacks Repelled . | . . . . . . . . . . Allies | -11 -10 -10 -10 -9 -8 -7 -6 -5 -4 -------- Run | Yrd Mat Min Exi Min Mat Fac Fac Fac Fac Total Allies 5 | . . . . 3 . . . 2 . Largest Group 3 | . . . . 3 2 . . 2 . Highest-Rated Group 82 | . . . . 40 32 . . 82 . Highest-Rated Ally 41 | . . . . 16 16 . . 41 . Total Orders . | . . . . . . . . . . Ally Attacks 29 | . . . . 13 9 . . 7 . Total Damage 559 | . . . . 147 108 . . 304 . Kills 2 | . . . . 1 . . . 1 . Allies Corrupted . | . . . . . . . . . . Allies Melted . | . . . . . . . . . . Intel | -11 -10 -10 -10 -9 -8 -7 -6 -5 -4 ------- Run | Yrd Mat Min Exi Min Mat Fac Fac Fac Fac Active Infowar (turns) 2834 | 11 40 370 719 681 219 66 . 728 . Sensors 2169 | . . . 633 681 219 . . 636 . Terrain 66 | . . . . . . 66 . . . Seismic 507 | 11 40 370 86 . . . . . . Jamming 495 | . . . . . . . . 495 . Robot Analysis Total . | . . . . . . . . . . Derelict Logs Recovered 2 | . . 1 . 1 . . . . . Drone Launches 2 | . . . . . . . . . 2 Drone Recoveries 2 | . . . . . . . . . 2 Exploration | -11 -10 -10 -10 -9 -8 -7 -6 -5 -4 ------------- Run | Yrd Mat Min Exi Min Mat Fac Fac Fac Fac Turns Passed 5224 | 113 40 370 719 681 449 645 348 1324 535 Spaces Moved 4365 | 73 49 399 892 635 309 427 334 815 432 Core 159 | 11 . . . . . 3 . 2 143 Treads . | . . . . . . . . . . Legs 754 | . . . . . 148 307 . 275 24 Wheels 3157 | 62 49 399 892 635 161 117 334 479 29 Hover 295 | . . . . . . . . 59 236 Flight . | . . . . . . . . . . Fastest Speed 50 | 50 80 80 80 80 90 86 86 56 50 Average Speed 94 | 88 80 80 80 89 114 112 86 105 95 Slowest Speed 300 | 95 80 80 80 90 190 300 86 300 250 Overloaded Moves . | . . . . . . . . . . Propulsion Burnouts . | . . . . . . . . . . Robots Hopped . | . . . . . . . . . . Potential Cave-ins . | . . . . . . . . . . Cave-ins Triggered . | . . . . . . . . . . Exploration Rate (%) 34 | 5 14 65 92 92 27 12 9 19 10 Regions Visited 9 Branch Regions 3 Pre-discovered Areas . | . . . . . . . . . . Known Exits Taken 2 | . . . . . 1 . . 1 . Unknown Exits Taken 7 | 1 1 1 1 1 . 1 1 . . Scrap Searched 3 | . . 1 . 2 . . . . . Spaces Dug 2 | . . . . . 1 1 . . . Terrain Destroyed 104 | . . . . . 24 3 . 24 53 Melee 2 | . . . . . 1 1 . . . Projectile 11 | . . . . . 2 2 . 2 5 AOE 91 | . . . . . 21 . . 22 48 Terrain Rammed . | . . . . . . . . . . Walls Destroyed . | . . . . . . . . . . Machines Disabled . | . . . . . . . . . . Actions | -11 -10 -10 -10 -9 -8 -7 -6 -5 -4 --------- Run | Yrd Mat Min Exi Min Mat Fac Fac Fac Fac Total 5228 | 107 49 450 896 727 367 533 394 1195 510 Wait 482 | 9 . 46 . 75 14 16 44 269 9 Move 4356 | 72 48 398 891 634 308 426 333 814 432 Hop . | . . . . . . . . . . Pick Up 95 | 12 1 4 2 4 9 22 7 21 13 Fast Attach . | . . . . . . . . . . Attach 70 | 7 . . . 1 7 16 5 18 16 Detach 2 | . . . . . . . . . 2 Swap 28 | . . . 2 1 8 6 1 9 1 Drop 30 | . . 2 1 2 4 6 3 11 1 Fire 140 | 7 . . . 10 16 36 1 43 27 Melee 14 | . . . . . 1 1 . 5 7 Ram 2 | . . . . . . . . . 2 Kick . | . . . . . . . . . . Crush . | . . . . . . . . . . Escape Stasis 5 | . . . . . . . . 5 . Rewire 4 | . . . . . . 4 . . . Trap . | . . . . . . . . . . Miscellaneous . | . . . . . . . . . . Route ------- -11/Scrapyard -10/Materials -10/Mines (discovered 2 exits: [*Mat] / *Exi) -10/Exiles (discovered 2 exits: [*Min x2]) -9/Mines (discovered 2 exits: *Mat x2) -8/Materials (discovered 2 exits: *Fac x2) -7/Factory -6/Factory -5/Factory -4/Factory History --------- Turn | Location | Event 9 | -11/Scrapyard | Discovered new exit (range 16) 114 | -11/Scrapyard | Entered Materials 142 | -10/Materials | Discovered new exit (range 8) 154 | -10/Materials | Entered Mines 168 | -10/Mines | Learned Materials terminal intel 250 | -10/Mines | Discovered new exit (range 8) 301 | -10/Mines | Found a damaged Exp. Sensor Array with a note attached 303 | -10/Mines | Found Prototype Device 315 | -10/Mines | Build established: Mutant 520 | -10/Mines | Deemed a non-threat by the Exiles lab entrance 521 | -10/Mines | Discovered new exit (range 5) 524 | -10/Mines | Entered Exiles 524 | -10/Exiles | Found Exiles lab abandoned 536 | -10/Exiles | Discovered new exit (range 15) 610 | -10/Exiles | Identified Exp. Sensor Array 1236 | -10/Exiles | Discovered new exit (range 10) 1243 | -10/Exiles | Entered Mines 1339 | -9/Mines | Assisted by bots powering up and referring to "LRC-V3" 1466 | -9/Mines | Learned 2 Materials zone layouts 1527 | -9/Mines | YI-UF0 nonchalantly dropped a Grenade Launcher on the ground 1830 | -9/Mines | Discovered new exit (range 5) 1902 | -9/Mines | Discovered new exit (range 8) 1924 | -9/Mines | Entered Materials 1924 | -8/Materials | Accompanied by 2 allies 1924 | -8/Materials | Evolved 4 slots: Propulsion x1, Utility x3 1925 | -8/Materials | Identified exit to Factory 1926 | -8/Materials | Loaded intel: 12 terminal locations 2248 | -8/Materials | Destroyed 9 combat bots 2257 | -8/Materials | Lost 4 parts (1p1n1u1w) 2361 | -8/Materials | Discovered exit to Factory (range 7) 2373 | -8/Materials | Entered Factory 2373 | -7/Factory | Evolved 2 slots: Propulsion x1, Utility x1 2560 | -7/Factory | Lost 3 parts (1p1n1w) 2784 | -7/Factory | Garrison activated, responded to threat 2890 | -7/Factory | Core integrity fell below 50% 2894 | -7/Factory | Lost 9 parts (2p4n3w) 2995 | -7/Factory | Discovered new exit (range 12) 3018 | -7/Factory | Entered another Factory area 3018 | -6/Factory | Evolved 2 slots: Power x1, Utility x1 3044 | -6/Factory | Lost 3 parts (1p1u1w) 3124 | -6/Factory | Repaired Imp. Medium Armor Plating 3359 | -6/Factory | Discovered new exit (range 8) 3366 | -6/Factory | Entered another Factory area 3366 | -5/Factory | Evolved 2 slots: Propulsion x1, Utility x1 3554 | -5/Factory | Fabricated H-66 Slayer (x2) 3577 | -5/Factory | Build established: Scavenger-Mutant 3864 | -5/Factory | Garrison activated, responded to threat 4143 | -5/Factory | Lost 3 parts (1p2n) 4402 | -5/Factory | Build established: Mutant 4503 | -5/Factory | Lost 7 parts (2p2n2u1w) 4636 | -5/Factory | System corruption reached 10% 4669 | -5/Factory | Lost 3 parts (1n1u1w) 4680 | -5/Factory | Discovered new exit (range 16) 4683 | -5/Factory | Core integrity fell below 50% 4690 | -5/Factory | Identified exit to Factory 4690 | -5/Factory | Entered another Factory area 4690 | -4/Factory | Evolved 2 slots: Propulsion x1, Utility x1 4935 | -4/Factory | Lost 3 parts (2n1w) 5166 | -4/Factory | Lost 12 parts (6n2u4w) 5184 | -4/Factory | Core integrity fell below 50% 5197 | -4/Factory | Core integrity fell below 20% 5225 | -4/Factory | Destroyed by P-70 Sage with High-powered Shock Rifle Last Messages --------------- Penetrated by Slug. H-77 Assassin system terminally corrupted. Acquired 44 matter. ALERT: Cargo convoy en route, clear transfer corridor. K-01 Serf collects debris. Slammed into G-67 Veteran. O-32 Director: "IFF HANDSHAKE FAILED. SECURING TERMINAL." Knocked back. Acquired 5 matter. Imp. Signal Interpreter destroyed. Critical hit (Blast). Knocked back. ALERT: Hostiles spotted, dispatching reinforcements to Terminal F022. System corrupted: Matter fused (-6). Acquired 6 matter. Pressure Siphon disabled. FR5VN7PXYT99/CHVWYFQWHPCGBNC JSKE MZIY Map ----- +----------------------------------------------------+ | ?????????????????????????????????????????????????? | | ?????????????????????????????????????????????????? | | ?????????????????????????????????????????????????? | | ?????????????????????????????????????????????????? | | ?????????????????????????????????????????????????? | | ?????????????????????????????????????????????????? | | ?????????????????????????????????????????????????? | | ?????????????????????????????????????????????????? | | ?????????????????????????????????????????????????? | | ?????????????????????????????????????????????????? | | ?????????????????????????????????????????????????? | | ????????????????????????#????????????????????????? | | ???????????????????????! ???????????????????????? | | ??????????????????????? ???????????????????????? | | ???????????????????????" "???????????????????????? | | ?????????????????# ???"" ""??????????????????????? | | ?????????????????# """" """"????????????????????? | | ?????????????????# """" """"????????????????????? | | ?????????????????# #??????????????????? | | ?????????????????# """" """" #??????????????????? | | ?????????????????# """" """" #??????????????????? | | ?????" ??????????# """" """" #??????????????????? | | ?????" ??????????# """" """" #??????????????????? | | ????? ??????????# #??????????????????? | | ??####+##############+##+######??????????????????? | | ??# @ #????????????????????? | | ??# #????????????????????? | | ?# #????????????????????? | | ?# ?????????????????? | | ?# #####????????????????? | | +## #????????????????????? | | #????????????????????? | | ############## ####????????????????????? | | """" #??########### #???????????????????????? | | """" #??# # #???????????????????????? | | """" #??# #+#???????????????????????? | | % #### # ????????????????????????? | | """" / # ????????????????????????? | | """" ##/########### ????????????????????????? | | """" # # ????????????????????????? | | # #?????????????????????????? | | """" " #?????????????????????????? | | """" " #?????????????????????????? | | """% # #?????????????????????????? | | % # #?????????????????????????? | | """ # #?????????????????????????? | | """ # #?????????????????????????? | | """ + #?????????????????????????? | | # #?????????????????????????? | | ! # #?????????????????????????? | +----------------------------------------------------+ Best States ------------- Heat Dissipation 43 Energy Generation 21 Energy Capacity 315 Matter Stores 300 Matter Capacity 300 Sight Range 16 Robot Scan Range 20 Terrain Scan Range 16 Terrain Scan Density 110 Jamming Range 14 Armor Coverage 450 Evasion (%) 70 Targeting Accuracy 8 Item Schematics ----------------- None Robot Schematics ------------------ None Fabricated ------------ H-66 Slayer | x2 | -5/Factory | Preloaded Repaired ---------- Imp. Medium Armor Plating | 16% | -6/Factory Alien Tech Used ----------------- None Achievements -------------- None Challenges ------------ None Game ------ Seed LightningChromionShifter Manual? 0 Play Time 01:18:04 Cumulative 59.2 hours Start 2025.07.08 @ 16:53:08 End 2025.07.08 @ 19:32:28 Sessions 1 Manual Loads 0 Difficulty Rogue Special Mode None Game No. 60 Rogue 50 Adventurer 10 Explorer 0 Win Type - Total 1 Types 1/0/0/0/0/0/0/0/0/0 Lore% 27 Gallery% 36 Achievement% 31 Wizard Run 0 Options --------- Layout 1 ASCII 0 Keyboard 0 Movement Numpad Keybinds 0 Fullscreen 1 Font 24/Smallcaps Map View 50x35 Zoom Use 0% Tactical HUD 0 Map Filters NONE Filters NONE Steam 1 RUN: d99b41f3-d3f3-4164-b858-90b9c2932247